bitfinex/quotes_SOLUSD_20251125
["timestamp","ask_amount","ask_price","bid_price","bid_amount"]
[1764035317646,4.39899131,138.32,138.29,7.88101372]
[1764035317939,4.39899131,138.31,138.29,7.88101372]
[1764035318144,4.39899131,138.31,138.3,0.65]
[1764035318618,4.39899131,138.32,138.3,0.65]
[1764035319943,4.39899131,138.32,138.3,7.88056504]
[1764035320323,4.39899131,138.32,138.31,0.65]
[1764035321525,4.39899131,138.32,138.29,0.65]
[1764035321822,4.39899131,138.31,138.29,0.65]
[1764035322229,4.39899131,138.3,138.28,8.80994492]
[1764035322443,4.39899131,138.3,138.27,11.08202963]
[1764035322626,4.39899131,138.29,138.27,3.2]
[1764035322833,4.39899131,138.28,138.26,9.45994492]
[1764035323060,4.39899131,138.27,138.25,3.2]
[1764035323229,4.39899131,138.26,138.25,3.2]
[1764035324356,4.39899131,138.27,138.25,3.85]
[1764035324536,4.39899131,138.27,138.26,0.65]
[1764035325228,7.23089826,138.3,138.26,0.65]
[1764035325427,4.39899131,138.27,138.26,0.65]
[1764035325938,4.39899131,138.27,138.25,3.2]
[1764035326144,4.39899131,138.26,138.25,3.85]
[1764035326322,4.39899131,138.26,138.23,0.65]
[1764035326645,4.39899131,138.25,138.24,0.65]
[1764035327523,4.39899131,138.26,138.24,0.65]
[1764035327750,4.39899131,138.27,138.24,7.88373991]
[1764035328148,4.39899131,138.26,138.25,0.65]
[1764035328739,4.39899131,138.27,138.25,0.65]
[1764035329628,4.39899131,138.26,138.25,0.65]
[1764035330353,4.39899131,138.26,138.23,0.65]
[1764035330652,4.39899131,138.26,138.24,0.65]
[1764035331845,16.308864,138.3,138.24,7.88369742]
[1764035332034,4.39899131,138.27,138.25,0.65]
[1764035332231,16.998864,138.3,138.25,0.15]
[1764035332428,4.39899131,138.29,138.25,8.80994492]
[1764035332752,4.39899131,138.29,138.25,12.00994492]
[1764035333435,4.39899131,138.28,138.25,12.00994492]
[1764035334350,4.39899131,138.28,138.26,7.89268743]
[1764035334657,4.39899131,138.29,138.26,7.89268743]
[1764035334839,4.39899131,138.29,138.27,0.66]
[1764035335022,0.68,138.31,138.27,0.66]
[1764035335023,4.39899131,138.28,138.27,0.66]
[1764035335229,4.39899131,138.28,138.24,3.85]
[1764035335547,4.39899131,138.26,138.25,0.65]
[1764035336258,4.39899131,138.26,138.24,7.23360977]
[1764035336553,20.70785531,138.32,138.22,0.65]
[1764035336554,16.968864,138.28,138.22,0.65]
[1764035336852,4.39899131,138.25,138.23,0.65]
[1764035337050,16.308864,138.27,138.23,0.65]
[1764035337347,4.39899131,138.25,138.23,0.65]
[1764035338157,4.39899131,138.24,138.21,7.88536647]
[1764035338356,4.39899131,138.23,138.21,7.38536647]
[1764035339059,4.39899131,138.22,138.2,3.85]
[1764035339754,4.39899131,138.22,138.21,0.65]
[1764035340843,4.39899131,138.23,138.21,7.88536647]
[1764035341239,4.39899131,138.23,138.21,0.65]
[1764035341439,4.39899131,138.22,138.2,3.85]
[1764035341859,4.39899131,138.22,138.2,10.43580035]
[1764035342158,4.39899131,138.22,138.21,0.65]
[1764035342863,20.70785531,138.22,138.18,0.65]
[1764035343041,4.39899131,138.19,138.18,9.45994492]
[1764035343241,0.66,138.25,138.18,8.80994492]
[1764035343538,0.66,138.28,138.19,8.80994492]
[1764035343739,4.39899131,138.24,138.21,8.80994492]
[1764035343940,4.39899131,138.23,138.21,8.80994492]
[1764035344141,4.39899131,138.23,138.22,0.65]
[1764035344866,4.39899131,138.24,138.22,7.88479174]
[1764035345282,4.39899131,138.24,138.23,0.65]
[1764035346183,4.39899131,138.25,138.23,0.65]
[1764035346361,4.39899131,138.27,138.23,3.85]
[1764035346556,11.6823142,138.27,138.24,7.23379629]
[1764035346783,11.6823142,138.25,138.23,3.2]
[1764035346961,11.6823142,138.24,138.21,0.65]
[1764035347159,11.6823142,138.23,138.21,0.65]
[1764035347476,11.6823142,138.23,138.2,8.80994492]
[1764035347477,11.6823142,138.22,138.2,0.65]
[1764035347969,11.6823142,138.23,138.2,9.45994492]
[1764035348350,11.6823142,138.23,138.21,0.65]
[1764035348549,11.6823142,138.23,138.21,7.88520046]
[1764035349169,11.6823142,138.23,138.21,0.65]
[1764035349377,11.6823142,138.24,138.21,16.69524193]
[1764035349577,11.6823142,138.24,138.21,7.88529701]
[1764035349784,11.6823142,138.24,138.22,0.65]
[1764035350458,16.968864,138.28,138.22,0.65]
[1764035350655,11.6823142,138.24,138.22,7.88442304]
[1764035351376,16.968864,138.27,138.22,7.88442304]
[1764035351589,11.6823142,138.24,138.23,0.65]
[1764035351957,12.3423142,138.24,138.18,0.65]
[1764035352156,11.6823142,138.19,138.18,0.65]
[1764035352463,11.6823142,138.19,138.17,8.80994492]
[1764035352664,11.6823142,138.18,138.16,11.08776786]
[1764035352851,11.6823142,138.18,138.16,7.88776786]
[1764035353053,0.66,138.21,138.16,7.23776786]
[1764035353259,11.6823142,138.18,138.16,7.23776786]
[1764035353469,36.13943473,138.36,138.17,25.11880892]
[1764035353669,0.66,138.26,138.18,3.2]
[1764035353880,16.308864,138.27,138.18,3.2]
[1764035353881,16.308864,138.27,138.19,8.80994492]
[1764035354059,11.6823142,138.25,138.19,9.45994492]
[1764035354260,11.6823142,138.25,138.21,8.80994492]
[1764035354560,11.6823142,138.24,138.21,12.00994492]
[1764035354764,11.6823142,138.24,138.22,7.884843]
[1764035354960,11.6823142,138.25,138.22,7.884843]
[1764035355165,11.6823142,138.26,138.23,9.45994492]
[1764035355361,11.6823142,138.27,138.23,9.45994492]
[1764035355571,11.6823142,138.27,138.24,0.65]
[1764035355761,11.6823142,138.26,138.24,0.65]
[1764035356163,11.6823142,138.25,138.22,7.884843]
[1764035356363,11.6823142,138.24,138.22,7.884843]
[1764035356772,11.6823142,138.24,138.23,0.65]
[1764035358655,11.6823142,138.25,138.23,0.65]
[1764035358856,11.6823142,138.25,138.23,7.88428816]
[1764035359282,11.6823142,138.25,138.23,7.23428816]
[1764035359485,11.6823142,138.25,138.24,0.65]
[1764035360287,11.6823142,138.25,138.23,7.88428816]
[1764035360586,11.6823142,138.25,138.24,0.65]
[1764035360772,11.6823142,138.25,138.23,0.65]
[1764035360978,11.6823142,138.24,138.23,0.65]
[1764035361775,11.6823142,138.26,138.23,0.65]
[1764035362990,16.968864,138.27,138.23,0.65]
[1764035363182,11.6823142,138.26,138.23,0.65]
[1764035365889,11.6823142,138.25,138.23,0.65]
[1764035366278,11.6823142,138.26,138.23,0.65]
[1764035366687,11.6823142,138.26,138.23,7.88429655]
[1764035366886,11.6823142,138.26,138.23,70.38429655]
[1764035367085,11.6823142,138.26,138.24,0.7]
[1764035367388,11.6823142,138.26,138.23,70.43429655]
[1764035367698,11.6823142,138.26,138.23,63.2]
[1764035367897,11.6823142,138.25,138.23,63.2]
[1764035368791,4.4046723,138.25,138.23,63.2]
[1764035368965,5.0746723,138.24,138.21,62.5]
[1764035369167,5.0746723,138.24,138.17,7.23724631]
[1764035369168,4.4046723,138.22,138.17,7.23724631]
[1764035369396,4.4046723,138.18,138.16,0.7]
[1764035369689,3.87,138.23,138.13,0.8]
[1764035369690,4.4046723,138.17,138.13,0.8]
[1764035369991,0.67,138.22,138.14,3.2]
[1764035370209,4.4046723,138.18,138.14,3.2]
[1764035370393,4.4046723,138.18,138.15,0.7]
[1764035370689,2.82256872,138.16,138.15,0.7]
[1764035371078,2.82256872,138.18,138.15,0.7]
[1764035371280,2.82256872,138.17,138.15,0.7]
[1764035372591,6.71984623,138.17,138.15,0.7]
[1764035372798,6.71984623,138.17,138.15,7.93845617]
[1764035373597,6.71984623,138.17,138.15,0.7]
[1764035373797,6.71984623,138.17,138.15,7.93838471]
[1764035374899,6.71984623,138.18,138.15,7.93838471]
[1764035375395,6.71984623,138.18,138.16,0.7]
[1764035375594,6.71984623,138.18,138.15,0.7]
[1764035375973,6.71984623,138.17,138.15,0.7]
[1764035376178,6.71984623,138.16,138.15,0.7]
[1764035376393,0.67,138.19,138.15,0.7]
[1764035376593,6.71984623,138.17,138.14,7.93903286]
[1764035376800,6.71984623,138.17,138.14,7.23903286]
[1764035376987,6.71984623,138.16,138.14,7.93903286]
[1764035377181,6.71984623,138.15,138.13,0.1]
[1764035377488,16.308864,138.19,138.13,0.1]
[1764035377489,6.71984623,138.14,138.13,0.1]
[1764035377791,6.71984623,138.15,138.13,0.8]
[1764035377977,6.71984623,138.16,138.13,0.8]
[1764035378681,6.71984623,138.17,138.13,0.8]
[1764035378880,6.71984623,138.2,138.14,8.80994492]
[1764035379075,6.71984623,138.24,138.17,6.71984623]
[1764035379284,6.71984623,138.24,138.19,8.80994492]
[1764035379490,6.71984623,138.24,138.2,0.7]
[1764035379872,6.71984623,138.24,138.21,7.23536647]
[1764035380376,6.71984623,138.24,138.21,7.93536647]
[1764035381107,6.71984623,138.26,138.22,0.7]
[1764035381683,6.71984623,138.25,138.22,0.7]
[1764035381885,6.71984623,138.25,138.23,7.23431961]
[1764035382392,6.71984623,138.25,138.23,7.93431961]
[1764035382893,6.71984623,138.24,138.22,7.23476663]
[1764035383280,6.71984623,138.24,138.21,3.9]
[1764035383481,3.2,138.28,138.19,26.90040734]
[1764035383482,6.71984623,138.22,138.2,10.43557749]
[1764035384200,6.71984623,138.22,138.2,11.13557749]
[1764035384996,6.71984623,138.22,138.2,10.43557749]
[1764035385407,6.71984623,138.24,138.21,0.7]
[1764035385708,0.67,138.26,138.21,8.80994492]
[1764035385903,6.71984623,138.24,138.21,9.50994492]
[1764035386895,6.71984623,138.24,138.22,0.7]
[1764035387605,6.71984623,138.24,138.21,16.04481813]
[1764035387913,6.71984623,138.24,138.21,16.74481813]
[1764035388413,3.2,138.28,138.22,0.7]
[1764035388589,6.71984623,138.26,138.22,0.7]
[1764035389613,20.178864,138.28,138.21,7.23487321]
[1764035389614,6.71984623,138.24,138.21,7.23487321]
[1764035390110,6.71984623,138.24,138.21,7.93487321]
[1764035390418,6.71984623,138.24,138.21,7.23487321]
[1764035390790,0.67,138.25,138.21,7.93487321]
[1764035390991,6.71984623,138.24,138.21,7.93487321]
[1764035392919,0.69,138.23,138.2,10.43576356]
[1764035393097,6.71984623,138.22,138.2,62.5]
[1764035393413,6.71984623,138.24,138.21,0.66]
[1764035393794,6.71984623,138.24,138.2,62.5]
[1764035393795,6.71984623,138.23,138.2,62.5]
[1764035394033,6.71984623,138.24,138.21,0.66]
[1764035394396,7.40984623,138.24,138.2,69.73567377]
[1764035394694,6.71984623,138.22,138.2,73.59581669]
[1764035395111,6.71984623,138.21,138.2,62.5]
[1764035395510,6.71984623,138.21,138.19,10.43630371]
[1764035395815,6.71984623,138.2,138.19,10.43630371]
[1764035396017,6.71984623,138.21,138.19,10.43630371]
[1764035396602,6.71984623,138.21,138.19,10.43640031]
[1764035396900,6.71984623,138.21,138.19,11.11640031]
[1764035397105,6.71984623,138.21,138.19,10.43640031]
[1764035397497,6.71984623,138.21,138.19,7.23640031]
[1764035398009,6.71984623,138.21,138.19,0.68]
[1764035398212,6.71984623,138.21,138.18,7.23693732]
[1764035398414,6.71984623,138.21,138.18,7.91693732]
[1764035401624,7.40984623,138.21,138.18,0.68]
[1764035401816,6.71984623,138.21,138.18,0.68]
[1764035402319,6.71984623,138.2,138.16,62.5]
[1764035402625,6.71984623,138.17,138.15,0.68]
[1764035403440,6.71984623,138.17,138.13,3.98]
[1764035403441,0.69,138.17,138.13,3.98]
[1764035403732,6.71984623,138.16,138.13,7.33950723]
[1764035403916,6.71984623,138.16,138.14,0.68]
[1764035404414,6.71984623,138.15,138.13,0.1]
[1764035404723,6.71984623,138.16,138.14,0.68]
[1764035404926,6.71984623,138.16,138.13,0.78]
[1764035405133,6.71984623,138.16,138.13,8.01949712]
[1764035405430,6.71984623,138.19,138.15,25.33478102]
[1764035406026,6.71984623,138.19,138.16,3.88]
[1764035406322,6.71984623,138.2,138.16,3.88]
[1764035406539,6.71984623,138.17,138.15,7.23850886]
[1764035406829,6.71984623,138.17,138.15,0.68]
[1764035407034,6.71984623,138.16,138.14,7.23889483]
[1764035407213,6.71984623,138.15,138.13,11.21950552]
[1764035407814,6.71984623,138.15,138.13,0.78]
[1764035408008,6.71984623,138.15,138.13,0.1]
[1764035408938,6.71984623,138.14,138.13,0.1]
[1764035409525,6.71984623,138.15,138.13,0.1]
[1764035409704,6.71984623,138.15,138.13,0.78]
[1764035410004,6.71984623,138.15,138.13,0.1]
[1764035410629,6.71984623,138.16,138.14,0.68]
[1764035411314,6.71984623,138.16,138.13,0.78]
[1764035411513,16.308864,138.2,138.14,7.23903286]
[1764035411707,6.71984623,138.19,138.15,3.2]
[1764035411912,6.71984623,138.18,138.15,3.88]
[1764035412109,6.71984623,138.18,138.16,0.68]
[1764035412631,6.71984623,138.2,138.16,0.68]
[1764035413513,6.71984623,138.2,138.17,7.23746109]
[1764035414241,6.71984623,138.2,138.18,0.68]
[1764035414432,20.198864,138.23,138.18,0.68]
[1764035414630,6.71984623,138.2,138.18,0.68]
[1764035415320,6.71984623,138.2,138.17,7.23746109]
[1764035415526,6.71984623,138.19,138.17,7.91746109]
[1764035415838,6.71984623,138.19,138.17,0.68]
[1764035416037,6.71984623,138.19,138.16,24.22674994]
[1764035416841,6.71984623,138.19,138.17,0.68]
[1764035417845,6.71984623,138.19,138.17,7.9173006]
[1764035418243,7.40984623,138.19,138.15,3.2]
[1764035418437,20.198864,138.23,138.16,0.68]
[1764035418753,2.82127731,138.19,138.16,63.18]
[1764035419315,3.51127731,138.19,138.16,62.5]
[1764035419657,0.69,138.2,138.16,63.18]
[1764035419834,2.82127731,138.19,138.16,70.41762974]
[1764035420031,2.82127731,138.19,138.16,69.73762974]
[1764035420331,2.82127731,138.19,138.17,0.68]
[1764035420531,2.82127731,138.18,138.16,62.5]
[1764035420932,0.69,138.19,138.16,63.18]
[1764035421138,2.82127731,138.18,138.16,70.41798236]
[1764035421948,2.82127731,138.19,138.16,70.41798236]
[1764035423853,16.988864,138.22,138.18,7.23693732]
[1764035424078,2.82127731,138.2,138.18,62.5]
[1764035424232,2.82127731,138.19,138.18,62.5]
[1764035424547,2.82127731,138.19,138.17,62.5]
[1764035424763,3.2,138.27,138.18,3.92]
[1764035424936,2.82127731,138.22,138.18,3.92]
[1764035425337,2.82127731,138.21,138.18,3.92]
[1764035425542,2.82127731,138.21,138.19,0.72]
[1764035425850,0.68,138.21,138.17,73.65744157]
[1764035426029,27.59397324,138.25,138.18,0.72]
[1764035426030,2.82127731,138.2,138.18,0.72]
[1764035426630,2.82127731,138.2,138.17,72.93744157]
[1764035426826,2.82127731,138.2,138.17,73.65744157]
[1764035427028,2.82127731,138.2,138.18,0.72]
[1764035427422,2.82127731,138.2,138.17,72.93744157]
[1764035427833,2.82127731,138.2,138.17,73.65744157]
[1764035428435,16.308864,138.23,138.17,72.93744157]
[1764035428666,2.82127731,138.25,138.19,8.80994492]
[1764035428844,2.82127731,138.23,138.2,3.2]
[1764035429163,2.82127731,138.23,138.2,3.92]
[1764035429361,2.82127731,138.23,138.21,0.72]
[1764035429938,2.82127731,138.23,138.21,7.95513904]
[1764035430640,4.40590855,138.22,138.19,65.7]
[1764035430968,4.40590855,138.21,138.19,10.43632457]
[1764035431435,4.40590855,138.21,138.19,11.15632457]
[1764035431638,4.40590855,138.22,138.2,0.72]
[1764035431940,4.40590855,138.22,138.2,7.95574178]
[1764035432850,4.40590855,138.21,138.19,11.15637054]
[1764035433034,0.68,138.23,138.19,11.15637054]
[1764035433360,4.40590855,138.21,138.19,11.15637054]
[1764035433562,0.68,138.23,138.19,11.15637054]
[1764035433864,4.40590855,138.21,138.19,11.15637054]
[1764035434253,4.40590855,138.21,138.19,3.92]
[1764035434743,4.40590855,138.21,138.19,11.15616934]
[1764035435061,0.68,138.24,138.19,11.15616934]
[1764035435262,4.40590855,138.22,138.19,11.15616934]
[1764035435640,0.68,138.24,138.19,11.15616934]
[1764035435641,16.308864,138.21,138.19,62.5]
[1764035435836,4.40590855,138.2,138.19,62.5]
[1764035436564,5.08590855,138.2,138.19,62.5]
[1764035436740,4.40590855,138.2,138.19,62.5]
[1764035437143,4.40590855,138.2,138.17,3.2]
[1764035437365,4.40590855,138.18,138.17,3.2]
[1764035437565,4.40590855,138.19,138.17,11.15746023]
[1764035437957,16.988864,138.22,138.17,10.43746023]
[1764035438167,4.40590855,138.19,138.17,11.15746023]
[1764035439169,4.40590855,138.18,138.17,3.92]
[1764035439374,4.40590855,138.18,138.17,11.15746109]
[1764035439880,16.308864,138.22,138.17,3.92]
[1764035440068,4.40590855,138.18,138.17,11.15746109]
[1764035440775,4.40590855,138.19,138.17,11.15746109]
[1764035441347,4.40590855,138.18,138.17,11.15746109]
[1764035442676,4.40590855,138.18,138.17,3.92]
[1764035442979,4.40590855,138.18,138.15,11.15838019]
[1764035443482,4.40590855,138.17,138.16,0.72]
[1764035443950,16.988864,138.2,138.16,0.72]
[1764035443951,4.40590855,138.18,138.16,70.45798494]
[1764035444466,4.40590855,138.18,138.16,69.73798494]
[1764035444667,4.40590855,138.18,138.16,70.45798494]
[1764035444865,4.40590855,138.18,138.16,69.73798494]
[1764035445049,4.40590855,138.18,138.16,70.45798494]
[1764035445651,4.40590855,138.18,138.17,0.72]
[1764035447970,4.40590855,138.19,138.17,0.72]
[1764035448179,4.40590855,138.2,138.17,3.92]
[1764035448590,4.40590855,138.2,138.18,0.72]
[1764035448953,4.40590855,138.19,138.18,0.72]
[1764035449152,4.40590855,138.19,138.16,62.5]
[1764035449484,4.40590855,138.17,138.16,63.22]
[1764035449785,4.40590855,138.19,138.17,0.72]
[1764035449967,4.40590855,138.19,138.17,70.45701869]
[1764035450157,4.40590855,138.19,138.18,0.72]
[1764035450605,4.40590855,138.2,138.18,63.22]
[1764035450813,4.40590855,138.23,138.19,8.80994492]
[1764035451012,4.40590855,138.23,138.2,3.2]
[1764035451196,16.308864,138.23,138.2,3.92]
[1764035451506,4.40590855,138.24,138.21,0.72]
[1764035452083,16.308864,138.23,138.21,7.95509698]
[1764035452290,20.71477255,138.24,138.21,7.95509698]
[1764035452485,4.40590855,138.23,138.22,0.72]
[1764035452690,4.40590855,138.23,138.21,62.5]
[1764035452910,4.40590855,138.23,138.21,63.21]
[1764035453105,4.40590855,138.22,138.2,7.23576815]
[1764035453309,4.40590855,138.21,138.2,10.43576815]
[1764035453914,4.40590855,138.21,138.2,11.14576815]
[1764035454510,4.40590855,138.22,138.2,11.14576815]
[1764035454711,4.40590855,138.21,138.2,3.91]
[1764035455031,4.40590855,138.21,138.2,11.14585236]
[1764035455434,0.65,138.24,138.2,11.14585236]
[1764035455630,4.40590855,138.21,138.2,11.14585236]
[1764035457333,4.40590855,138.21,138.2,7.94585236]
[1764035458030,4.40590855,138.21,138.19,82.46617163]
[1764035458837,4.40590855,138.21,138.19,81.74617163]
[1764035459027,4.40590855,138.21,138.2,0.72]
[1764035459337,0.65,138.24,138.2,0.72]
[1764035459527,4.40590855,138.21,138.2,63.22]
[1764035460241,5.05590855,138.21,138.2,62.5]
[1764035460757,5.05590855,138.21,138.14,0.72]
[1764035460915,4.40590855,138.15,138.13,0.1]
[1764035461113,4.40590855,138.14,138.13,0.82]
[1764035461639,4.40590855,138.14,138.13,0.1]
[1764035461839,4.40590855,138.14,138.13,0.82]
[1764035462226,16.958864,138.17,138.13,0.1]
[1764035462427,4.40590855,138.14,138.13,0.1]
[1764035463347,16.958864,138.17,138.13,8.05955693]
[1764035463641,4.40590855,138.14,138.13,0.1]
[1764035464046,16.308864,138.17,138.13,8.0594192]
[1764035464218,4.40590855,138.15,138.13,8.0594192]
[1764035464418,4.40590855,138.15,138.14,0.72]
[1764035464718,4.40590855,138.16,138.14,9.52994492]
[1764035464919,4.40590855,138.17,138.15,12.00994492]
[1764035465138,4.40590855,138.18,138.15,12.72994492]
[1764035465357,4.40590855,138.18,138.16,0.72]
[1764035465645,20.71477255,138.18,138.16,0.72]
[1764035466516,4.40590855,138.17,138.15,65.7]
[1764035466722,4.40590855,138.16,138.15,65.7]
[1764035468351,4.40590855,138.16,138.15,66.42]
[1764035468551,4.40590855,138.16,138.15,65.7]
[1764035469862,4.40590855,138.16,138.15,62.5]
[1764035470856,4.40590855,138.16,138.13,11.25941091]
[1764035471169,4.40590855,138.14,138.13,0.1]
[1764035472457,5.05590855,138.14,138.13,0.1]
[1764035472659,4.40590855,138.14,138.13,0.1]
[1764035473063,20.71477255,138.14,138.13,0.1]
[1764035476561,5.05590855,138.14,138.13,0.1]
[1764035476765,4.40590855,138.14,138.13,0.1]
[1764035477156,5.05590855,138.14,138.13,0.1]
[1764035481160,5.05590855,138.14,138.1,0.1]
[1764035481161,16.70093548,138.14,138.1,0.1]
[1764035481478,16.308864,138.11,138.1,0.1]
[1764035481652,20.71477255,138.11,138.1,0.1]
[1764035481848,16.308864,138.08,138.07,0.1]
[1764035482055,20.71477255,138.08,138.07,0.1]
[1764035482976,21.39477255,138.08,138.07,0.1]
[1764035484279,4.40590855,138.08,138.07,0.1]
[1764035484861,20.71477255,138.08,138.07,0.1]
[1764035488381,21.39477255,138.08,138.07,0.1]
[1764035488790,20.71477255,138.08,138.07,0.1]
[1764035489166,4.40590855,138.09,138.07,0.81]
[1764035489489,4.40590855,138.11,138.07,8.05246686]
[1764035489659,20.71477255,138.11,138.07,8.05246686]
[1764035489855,4.40590855,138.12,138.08,0.71]
[1764035490255,4.40590855,138.13,138.09,8.80994492]
[1764035490759,4.40590855,138.13,138.1,0.71]
[1764035491380,4.40590855,138.14,138.11,7.24060531]
[1764035491770,19.508864,138.19,138.12,0.71]
[1764035491771,0.68,138.19,138.12,0.71]
[1764035491977,4.40590855,138.17,138.13,8.80994492]
[1764035492287,20.71477255,138.17,138.13,8.80994492]
[1764035492462,20.71477255,138.17,138.14,0.71]
[1764035492793,2.82245023,138.15,138.14,0.71]
[1764035492991,2.82245023,138.15,138.13,0.71]
[1764035493282,2.82245023,138.14,138.13,0.71]
[1764035494186,2.82245023,138.17,138.13,7.94944458]
[1764035494686,2.82245023,138.19,138.14,9.51994492]
[1764035494874,4.82245023,138.2,138.14,9.51994492]
[1764035495069,4.82245023,138.2,138.16,8.80994492]
[1764035495284,2.0,138.2,138.16,8.80994492]
[1764035495486,2.82245023,138.17,138.13,8.80994492]
[1764035495685,16.308864,138.18,138.15,0.71]
[1764035495877,2.82245023,138.16,138.15,0.71]
[1764035498593,2.82245023,138.16,138.13,78.54930243]
[1764035498793,2.82245023,138.16,138.14,0.71]
[1764035499098,2.82245023,138.15,138.14,0.71]
[1764035500405,16.308864,138.18,138.14,0.71]
[1764035500579,2.82245023,138.15,138.14,0.71]
[1764035502592,2.82245023,138.16,138.14,0.71]
[1764035503975,2.82245023,138.15,138.13,72.01994492]
[1764035504177,3.50245023,138.18,138.14,0.71]
[1764035504178,0.68,138.18,138.14,0.71]
[1764035504482,2.82245023,138.15,138.14,63.21]
[1764035507094,2.82245023,138.16,138.14,63.21]
[1764035507410,2.82245023,138.16,138.15,0.71]
[1764035507790,2.82245023,138.18,138.15,0.71]
[1764035508804,2.82245023,138.18,138.15,7.94839059]
[1764035509311,2.82245023,138.18,138.16,0.71]
[1764035510695,18.308864,138.2,138.16,7.94776598]
[1764035510896,21.13131423,138.2,138.16,7.94776598]
[1764035511112,21.13131423,138.2,138.17,0.71]
[1764035511991,2.82245023,138.19,138.17,0.71]
[1764035512997,2.82245023,138.19,138.17,7.94725858]
[1764035513404,2.82245023,138.19,138.18,0.7]
[1764035513605,2.82245023,138.19,138.18,63.2]
[1764035514895,2.82245023,138.19,138.18,62.5]
[1764035518229,2.82245023,138.19,138.17,0.68]
[1764035518542,2.82245023,138.18,138.16,62.5]
[1764035518835,2.82245023,138.17,138.16,62.5]
[1764035519593,2.82245023,138.17,138.16,63.18]
[1764035519798,2.82245023,138.17,138.16,70.41798494]
[1764035520400,2.82245023,138.18,138.16,79.22792986]
[1764035520612,4.82245023,138.2,138.17,3.88]
[1764035520825,2.82245023,138.19,138.17,3.88]
[1764035521125,4.82245023,138.2,138.18,7.91693732]
[1764035521500,4.82245023,138.2,138.19,0.68]
[1764035523429,21.82131423,138.2,138.14,19.24873826]
[1764035523718,2.82245023,138.15,138.14,19.24897778]
[1764035524108,2.82245023,138.15,138.14,12.68994492]
[1764035525231,2.82245023,138.15,138.14,19.92897778]
[1764035525615,2.82245023,138.16,138.14,19.92897778]
[1764035525804,2.82245023,138.16,138.15,0.68]
[1764035526505,2.82245023,138.16,138.13,0.68]
[1764035526829,2.82245023,138.14,138.13,3.2]
[1764035527622,2.82245023,138.14,138.13,3.88]
[1764035528034,2.82245023,138.14,138.12,78.54994355]
[1764035528736,2.82245023,138.14,138.13,0.68]
[1764035530227,2.82245023,138.14,138.13,63.18]
[1764035531534,2.82245023,138.15,138.13,70.41951903]
[1764035531732,2.82245023,138.15,138.14,0.68]
[1764035531936,3.2,138.19,138.14,0.68]
[1764035532114,2.82245023,138.16,138.14,66.38]
[1764035532512,2.82245023,138.16,138.15,0.68]
[1764035533233,2.82245023,138.16,138.14,66.38]
[1764035533432,2.82245023,138.15,138.14,65.7]
[1764035533735,16.308864,138.17,138.15,0.68]
[1764035534038,2.82245023,138.18,138.15,0.68]
[1764035534416,19.13131423,138.19,138.16,12.00994492]
[1764035534724,2.0,138.2,138.16,74.50994492]
[1764035534933,16.308864,138.19,138.17,0.68]
[1764035535230,16.308864,138.19,138.17,7.91742244]
[1764035535635,16.308864,138.19,138.18,0.68]
[1764035537044,19.13131423,138.19,138.18,0.68]
[1764035537229,4.82245023,138.2,138.18,11.11660577]
[1764035537417,4.82245023,138.2,138.18,10.43660577]
[1764035537617,4.82245023,138.2,138.19,0.68]
[1764035538038,2.0,138.2,138.19,0.68]
[1764035538921,4.82245023,138.2,138.18,3.2]
[1764035539125,2.82245023,138.19,138.17,0.68]
[1764035539420,2.82245023,138.18,138.16,81.74771487]
[1764035539621,2.82245023,138.19,138.16,81.74771487]
[1764035540034,2.82245023,138.19,138.17,3.88]
[1764035540536,2.82245023,138.19,138.18,0.68]
[1764035542143,2.82245023,138.19,138.18,63.18]
[1764035545548,4.82245023,138.2,138.18,70.41693732]
[1764035545750,2.0,138.2,138.18,62.5]
[1764035546048,2.82245023,138.19,138.18,62.5]
[1764035546433,2.82245023,138.19,138.18,63.19]
[1764035546748,2.82245023,138.19,138.18,62.5]
[1764035547249,19.82131423,138.19,138.15,62.5]
[1764035547453,2.82245023,138.16,138.12,9.49994492]